bitfinex-derivatives/quotes_BNBF0:USTF0_20250406
["timestamp","ask_amount","ask_price","bid_price","bid_amount"]
[1743937425894,0.562,588.44,587.99,0.28488358]
[1743937430001,0.562,588.44,588.12,1.27319059]
[1743937430200,0.562,588.44,588.13,0.28488358]
[1743937431007,0.562,588.44,588.12,1.27319059]
[1743937431203,0.562,588.44,588.13,0.28486409]
[1743937432408,0.562,588.44,588.13,1.55805468]
[1743937432611,0.562,588.44,588.14,0.28486409]
[1743937435711,0.562,588.44,588.15,0.28486409]
[1743937435909,0.562,588.44,588.05,1.27319059]
[1743937436114,0.562,588.44,588.06,0.28487755]
[1743937437415,0.562,588.44,588.05,1.27319059]
[1743937437610,0.562,588.44,588.07,0.28495179]
[1743937437816,0.562,588.44,588.08,0.28495179]
[1743937438016,0.562,588.44,588.09,0.28495179]
[1743937438213,0.562,588.44,588.06,0.28495179]
[1743937438415,0.562,588.44,588.07,0.28495179]
[1743937438616,0.562,588.44,588.06,0.28495179]
[1743937441121,0.562,588.44,588.07,1.27319059]
[1743937441313,0.562,588.44,588.08,0.28495179]
[1743937442921,0.562,588.44,588.11,1.27319059]
[1743937443116,0.562,588.44,588.12,0.28495179]
[1743937445417,0.562,588.44,588.13,0.28495179]
[1743937445619,0.562,588.44,588.06,0.28495179]
[1743937445923,0.562,588.44,588.07,0.28495179]
[1743937446122,0.562,588.44,588.06,0.28495179]
[1743937446322,0.562,588.44,588.08,0.28495179]
[1743937446523,0.562,588.44,588.09,0.28495179]
[1743937446723,0.562,588.44,588.06,0.28495179]
[1743937446924,0.562,588.44,588.07,0.28495179]
[1743937447222,0.562,588.44,588.05,1.27319059]
[1743937447424,0.562,588.44,587.91,0.34018812]
[1743937447425,0.562,588.44,588.06,1.27319059]
[1743937448216,0.562,588.44,588.07,0.28486829]
[1743937448620,0.562,588.44,588.06,1.27319059]
[1743937448823,0.562,588.44,588.07,0.2848384]
[1743937449524,0.562,588.44,588.07,1.55802899]
[1743937449722,0.562,588.44,588.08,0.2848384]
[1743937450218,0.562,588.44,588.09,0.28485046]
[1743937450422,0.562,588.44,588.08,0.28485046]
[1743937450623,0.562,588.44,588.09,0.28485046]
[1743937450823,0.562,588.44,588.08,0.28485046]
[1743937451027,0.562,588.44,588.1,0.28485046]
[1743937451226,0.562,588.44,588.11,0.28485046]
[1743937451526,0.562,588.44,588.12,0.28485046]
[1743937451722,0.562,588.44,588.07,1.27319059]
[1743937452025,0.562,588.44,588.08,0.28486846]
[1743937453024,0.562,588.44,588.09,0.28486846]
[1743937453224,0.562,588.44,588.07,0.28486846]
[1743937454626,0.562,588.44,588.1,1.27319059]
[1743937454828,0.562,588.44,588.11,0.28486846]
[1743937455224,0.58161073,588.73,588.11,0.28486846]
[1743937455424,0.58161073,588.72,588.11,0.28486846]
[1743937455623,0.783,588.8,588.11,0.28486846]
[1743937455826,0.58163242,588.79,588.11,0.28486846]
[1743937456025,0.58162846,588.78,588.11,0.28486846]
[1743937456222,0.58162846,588.77,588.11,0.28486846]
[1743937456423,0.58162846,588.76,588.11,0.28486846]
[1743937456728,0.58162846,588.75,588.1,1.27319059]
[1743937456922,0.58162846,588.74,588.11,0.28487016]
[1743937457125,0.58162846,588.73,588.11,0.28487016]
[1743937457328,0.58162846,588.72,588.11,0.28487016]
[1743937457528,0.783,588.8,588.11,0.28487016]
[1743937457823,0.58166858,588.79,588.2,1.27319059]
[1743937458027,0.58166858,588.78,588.21,0.28487016]
[1743937458225,0.58166858,588.77,588.21,0.28487016]
[1743937458425,0.58166858,588.76,588.21,0.28487016]
[1743937458727,0.58166858,588.75,588.21,0.28487016]
[1743937458924,0.58166858,588.74,588.21,0.28487016]
[1743937459125,0.58166858,588.73,588.21,0.28487016]
[1743937459427,0.58166858,588.72,588.21,0.28487016]
[1743937459627,0.79,588.77,588.21,0.28487016]
[1743937459826,0.58166368,588.76,588.21,0.28487016]
[1743937460026,0.58166368,588.75,588.21,0.28487016]
[1743937460226,0.58166368,588.74,588.22,0.28489349]
[1743937460430,0.58166368,588.73,588.16,0.28489349]
[1743937460730,0.58166368,588.72,588.16,0.28489349]
[1743937461029,0.79,588.77,588.16,0.28489349]
[1743937461328,0.5816694,588.76,588.16,0.28489349]
[1743937461529,0.5816694,588.75,588.16,0.28489349]
[1743937461731,0.5816694,588.74,588.16,0.28489349]
[1743937461932,0.5816694,588.73,588.16,0.28489349]
[1743937462131,0.5816694,588.72,588.18,1.27319059]
[1743937462332,0.5816694,588.71,588.19,0.28489349]
[1743937462531,0.5816694,588.7,588.19,0.28489349]
[1743937462729,0.79,588.77,588.19,0.28489349]
[1743937462930,0.58165915,588.76,588.19,0.28489349]
[1743937463131,0.58165915,588.75,588.19,0.28489349]
[1743937463427,0.58165915,588.74,588.19,0.28489349]
[1743937463628,0.58165915,588.73,588.2,0.28489938]
[1743937463831,0.58165915,588.72,588.19,0.28489938]
[1743937464028,0.58165915,588.71,588.18,1.27319059]
[1743937464228,0.58165915,588.7,588.19,0.28489489]
[1743937464429,0.58165915,588.69,588.19,0.28489489]
[1743937464630,0.79,588.77,588.19,0.28489489]
[1743937464833,0.58167087,588.76,588.19,0.28489489]
[1743937465034,0.58167087,588.75,588.18,1.27319059]
[1743937465235,0.58167087,588.74,588.19,0.28490035]
[1743937465534,0.58167087,588.73,588.2,0.28490035]
[1743937465734,0.58167087,588.72,588.0,0.28490035]
[1743937465941,0.58167087,588.71,587.99,1.27319059]
[1743937466233,0.58167087,588.7,588.0,0.28490328]
[1743937466429,0.58167087,588.69,588.0,0.28490328]
[1743937466634,0.58167087,588.68,587.99,1.27319059]
[1743937466834,0.671,588.74,588.0,0.28490816]
[1743937467133,0.58170297,588.73,588.0,0.28490816]
[1743937467334,0.58170297,588.72,588.0,0.28490816]
[1743937467533,0.58170297,588.71,588.01,0.28494053]
[1743937467828,0.58170297,588.7,588.0,0.28494053]
[1743937468032,0.58170297,588.69,588.01,0.28494053]
[1743937468233,0.58170297,588.68,588.02,0.28494053]
[1743937468534,0.58170297,588.67,588.03,0.28494401]
[1743937468734,0.58174659,588.66,588.0,0.28494401]
[1743937468931,0.671,588.74,588.01,0.28494401]
[1743937469132,0.58174629,588.73,588.0,0.28494401]
[1743937469331,0.58174629,588.72,588.01,0.28494401]
[1743937469535,0.671,588.74,588.0,0.28494401]
[1743937469536,0.58174629,588.71,588.0,0.28494401]
[1743937469731,0.58174629,588.7,588.02,0.28494401]
[1743937469934,0.58174629,588.69,588.03,0.28494401]
[1743937470129,0.671,588.74,588.04,0.28493888]
[1743937470336,0.58174378,588.73,587.98,0.28493888]
[1743937470635,0.5817322,588.72,587.99,0.28493888]
[1743937470835,0.671,588.74,588.0,0.28493888]
[1743937471135,0.58172085,588.73,588.01,0.28493888]
[1743937471336,0.58172085,588.72,587.98,0.28493888]
[1743937471538,0.671,588.74,587.99,0.28493888]
[1743937471736,0.58172458,588.73,588.0,0.2848847]
[1743937471936,0.671,588.74,588.02,1.27319059]
[1743937471937,0.58172458,588.72,588.02,1.27319059]
[1743937472132,0.671,588.74,588.02,1.27319059]
[1743937472334,0.671,588.74,588.03,0.2848847]
[1743937472533,0.58172692,588.73,588.03,0.2848847]
[1743937472731,0.58172692,588.72,588.03,0.2848847]
[1743937472936,0.671,588.74,588.03,0.2848847]
[1743937473138,0.58173558,588.73,588.03,0.2848847]
[1743937473436,0.58173558,588.72,588.03,0.2848847]
[1743937473639,0.671,588.74,588.03,0.2848847]
[1743937473833,0.5817334,588.73,588.03,0.2848847]
[1743937474033,0.5817334,588.72,588.03,0.2848847]
[1743937474235,0.671,588.74,588.12,1.27319059]
[1743937474436,0.58173945,588.73,588.13,0.2848847]
[1743937474636,0.58173945,588.72,588.13,0.2848847]
[1743937474837,0.671,588.74,588.13,0.2848847]
[1743937475038,0.58174505,588.73,588.12,1.27319059]
[1743937475235,0.58174505,588.72,588.13,0.28488362]
[1743937475436,0.671,588.74,588.13,0.28488362]
[1743937475636,0.58176326,588.73,588.13,0.28488362]
[1743937475839,0.58176326,588.72,588.13,0.28488362]
[1743937476035,0.671,588.74,588.13,0.28488362]
[1743937476237,0.58177057,588.73,588.13,0.28488362]
[1743937476437,0.58177057,588.72,588.13,0.28488362]
[1743937476634,0.671,588.74,588.06,1.27319059]
[1743937476841,0.58178468,588.73,588.07,0.28488205]
[1743937477040,0.58178468,588.72,588.07,0.28488205]
[1743937477339,0.58179194,588.71,588.07,0.28488205]
[1743937477539,0.58179194,588.7,588.07,0.28488205]
[1743937477733,0.58179194,588.69,588.07,0.28488205]
[1743937477938,0.58179194,588.68,588.07,0.28488205]
[1743937478138,0.58179194,588.67,588.07,0.28488205]
[1743937478338,0.671,588.74,588.07,0.28488205]
[1743937478538,0.58181555,588.73,588.07,0.28488205]
[1743937478737,0.58181555,588.72,588.07,0.28488205]
[1743937478933,0.58181555,588.71,588.04,0.28488205]
[1743937479237,0.58181555,588.7,588.05,0.28488205]
[1743937479437,0.58181555,588.69,588.04,0.28488205]
[1743937479639,0.58181555,588.68,588.05,0.28488205]
[1743937479839,0.58186343,588.67,588.04,0.28488205]
[1743937480034,0.671,588.74,588.05,0.28488205]
[1743937480235,0.58186834,588.73,588.06,0.28488205]
[1743937480443,0.58186834,588.72,588.04,0.28488205]
[1743937480636,0.58186834,588.71,588.05,0.28488205]
[1743937480840,0.58186834,588.7,588.06,1.27319059]
[1743937481039,0.58186834,588.69,588.07,0.28488205]
[1743937481240,0.58186834,588.68,588.07,0.28488205]
[1743937481437,0.58186834,588.67,588.07,0.28488205]
[1743937481639,0.58186834,588.66,588.06,1.27319059]
[1743937481841,0.671,588.74,588.08,0.28489515]
[1743937482042,0.58192415,588.73,588.09,0.28489515]
[1743937482238,0.58192415,588.72,588.07,0.28489515]
[1743937482443,0.58192415,588.71,588.08,0.28489515]
[1743937482740,0.58192415,588.7,588.09,0.28489515]
[1743937482943,0.58192415,588.69,588.07,0.28489515]
[1743937483144,0.671,588.74,588.07,0.28489515]
[1743937483345,0.58192648,588.73,588.04,0.28489515]
[1743937483546,0.58192648,588.72,588.05,0.28489515]
[1743937483745,0.58192648,588.71,588.04,0.28489515]
[1743937483946,0.58192648,588.7,588.05,0.28489515]
[1743937484142,0.58192648,588.69,588.04,0.28489515]
[1743937484348,0.671,588.74,588.05,0.28489515]
[1743937484648,0.58198836,588.73,588.06,0.28489515]
[1743937484847,0.58198836,588.72,588.04,0.28489515]
[1743937485049,0.671,588.74,588.04,0.28489515]
[1743937485348,0.58198918,588.73,588.04,0.28489515]
[1743937485550,0.58198918,588.72,588.04,0.28489515]
[1743937485743,0.58198918,588.71,588.05,0.2848639]
[1743937485943,0.671,588.74,588.08,1.27319059]
[1743937486143,0.582034,588.73,588.09,0.2848639]
[1743937486346,0.582034,588.72,588.09,0.2848639]
[1743937486547,0.582034,588.71,588.09,0.2848639]
[1743937486745,0.671,588.74,588.08,1.27319059]
[1743937486950,0.58206087,588.73,588.1,0.28485449]
[1743937487145,0.58206087,588.72,588.11,0.28485449]
[1743937487348,0.58206087,588.71,588.09,0.28485449]
[1743937487546,0.671,588.74,588.09,0.28485449]
[1743937488146,0.671,588.74,588.08,0.28485449]
[1743937488347,0.671,588.74,588.09,0.28485449]
[1743937488550,0.671,588.74,588.08,0.28485449]
[1743937488751,0.671,588.74,588.09,0.28485449]
[1743937488947,0.671,588.74,588.1,0.28485449]
[1743937489146,0.671,588.74,588.08,0.28485449]
[1743937489349,0.671,588.74,588.09,0.28485449]
[1743937489546,0.671,588.74,588.1,0.28485449]
[1743937489846,0.671,588.74,588.11,0.28485449]
[1743937490049,0.671,588.74,588.08,0.28485449]
[1743937490254,0.671,588.74,588.17,1.27319059]
[1743937490454,0.671,588.74,588.18,0.28485449]
[1743937491648,0.671,588.74,588.17,1.27319059]
[1743937491851,0.671,588.74,588.18,0.28476273]
[1743937492352,0.671,588.74,588.18,1.55795332]
[1743937492553,0.79,588.77,588.19,0.28476273]
[1743937493554,0.79,588.77,588.18,1.27319059]
[1743937493752,0.79,588.77,588.19,0.28476204]
[1743937495152,0.79,588.77,588.15,1.27319059]
[1743937495348,0.485,588.76,588.16,0.28476245]
[1743937497256,0.485,588.76,588.15,0.28476245]
[1743937497455,0.485,588.76,588.16,0.28476245]
[1743937497654,0.485,588.76,588.15,0.28476245]
[1743937497856,0.485,588.76,588.16,0.28476245]
[1743937498051,0.485,588.76,588.15,0.28476245]
[1743937500156,0.485,588.76,588.12,0.28476245]
[1743937500360,0.485,588.76,588.13,0.28476245]
[1743937500561,0.485,588.76,588.12,0.28476245]
[1743937501259,0.485,588.76,588.07,1.27319059]
[1743937501465,0.485,588.76,588.11,0.29561295]
[1743937501662,0.485,588.76,588.12,0.28490537]
[1743937503168,0.485,588.76,588.13,0.28487607]
[1743937503366,0.485,588.76,588.12,0.28487607]
[1743937503567,0.485,588.76,588.13,0.28487607]
[1743937503762,0.485,588.76,588.14,0.28487607]
[1743937503964,0.485,588.76,588.12,0.28487607]
[1743937504166,0.485,588.76,588.13,0.28487607]
[1743937504367,0.485,588.76,588.02,0.28487607]
[1743937504564,0.485,588.76,588.03,0.3401187]
[1743937504769,0.485,588.76,588.04,0.28487345]
[1743937504969,0.485,588.76,588.04,0.62498636]
[1743937505168,0.485,588.76,588.05,0.28487345]
[1743937505369,0.485,588.76,588.05,0.58049142]
[1743937505566,0.485,588.76,588.06,0.28487345]
[1743937507269,0.485,588.76,588.05,0.28487345]
[1743937507470,0.485,588.76,588.07,0.28487345]
[1743937507670,0.485,588.76,588.08,0.28487345]
[1743937507971,0.485,588.76,588.09,0.28487345]
[1743937508169,0.485,588.76,588.1,0.28487345]
[1743937508466,0.485,588.76,588.11,0.28487345]
[1743937508671,0.485,588.76,588.06,0.28487345]
[1743937508871,0.485,588.76,588.07,0.28487345]
[1743937509070,0.485,588.76,588.08,0.28487345]
[1743937509271,0.485,588.76,588.09,0.28487345]
[1743937509571,0.485,588.76,588.05,1.56880731]
[1743937509771,0.485,588.76,588.06,0.28489216]
[1743937511370,0.485,588.76,588.06,1.55808275]
[1743937511573,0.485,588.76,588.07,0.28489216]
[1743937513178,0.485,588.76,588.1,1.27319059]
[1743937513377,0.485,588.76,588.11,0.28489216]
[1743937515578,0.485,588.76,588.14,1.27319059]
[1743937515778,0.485,588.76,588.15,0.28489216]
[1743937516078,0.575,588.75,588.15,0.28489216]
[1743937518379,0.575,588.75,588.19,1.27319059]
[1743937518577,0.575,588.75,588.2,0.28489216]
[1743937519478,0.575,588.75,588.19,1.27319059]
[1743937519779,0.575,588.75,588.2,0.28472819]
[1743937521079,0.575,588.75,588.18,1.27319059]
[1743937521378,0.575,588.75,588.19,0.28474222]
[1743937521578,0.614,588.74,588.19,0.28474222]
[1743937522976,0.614,588.74,588.2,0.2847375]
[1743937523177,0.614,588.74,588.19,0.2847375]
[1743937524081,0.614,588.74,588.2,0.2847375]
[1743937524378,0.614,588.74,588.21,0.2847375]
[1743937524578,0.614,588.74,588.14,0.2847375]
[1743937524876,0.614,588.74,588.15,0.2847375]
[1743937525074,0.614,588.74,588.14,0.2847375]
[1743937525379,0.614,588.74,588.15,0.2847375]
[1743937525579,0.614,588.74,588.14,0.2847375]
[1743937526178,0.614,588.74,588.05,0.2847375]
[1743937526379,0.614,588.74,588.06,0.2847375]
[1743937527780,0.614,588.74,588.05,0.29562425]
[1743937527981,0.614,588.74,588.06,0.28477585]
[1743937528178,0.614,588.74,588.05,0.28477585]
[1743937528379,0.614,588.74,588.06,0.28477585]
[1743937528975,0.58120831,588.73,588.06,0.28477585]
[1743937529180,0.58127829,588.72,588.06,0.28477585]
[1743937529381,0.58128135,588.71,588.05,0.29563555]
[1743937529675,0.614,588.74,588.06,0.28475167]
[1743937529881,0.58128135,588.73,588.06,0.28475167]
[1743937530076,0.58128135,588.72,588.06,0.28475167]
[1743937530277,0.58128135,588.71,588.06,0.28475167]
[1743937530482,0.614,588.74,588.06,0.28475167]
[1743937530674,0.58133132,588.73,588.06,0.28475167]
[1743937530878,0.58133132,588.72,588.06,0.28475167]
[1743937531077,0.58133132,588.71,588.06,0.28475167]
[1743937531280,0.614,588.74,588.07,0.28475167]
[1743937531481,0.58134352,588.73,588.05,0.28475167]
[1743937531783,0.58134352,588.72,588.06,0.28475167]
[1743937532084,0.58134352,588.71,588.07,0.28475167]
[1743937532283,0.58134352,588.7,588.05,0.28475167]
[1743937532482,0.58134352,588.69,588.05,0.28475167]
[1743937532682,0.614,588.74,588.05,0.28475167]
[1743937532879,0.58136833,588.73,588.06,0.28476519]
[1743937533080,0.58136833,588.72,588.05,0.28476519]
[1743937533284,0.58136833,588.71,588.05,0.28476519]
[1743937533484,0.58136833,588.7,588.05,0.28476519]
[1743937533686,0.58136833,588.69,588.05,0.28476519]
[1743937533985,0.58136833,588.68,588.05,0.28476519]
[1743937534180,0.614,588.74,588.05,0.28476519]
[1743937534384,0.58136587,588.73,588.05,0.28476519]
[1743937534584,0.58136587,588.72,588.05,0.28476519]
[1743937534784,0.58136587,588.71,588.05,0.28476519]
[1743937534982,0.58136587,588.7,588.05,0.28476519]
[1743937535185,0.58136587,588.69,588.05,0.28476519]
[1743937535385,0.58136587,588.68,588.05,0.28476519]
[1743937535686,0.614,588.74,588.05,0.28476519]
[1743937535886,0.58136281,588.73,588.05,0.28476519]
[1743937536086,0.58136281,588.72,588.05,0.28476519]
[1743937536282,0.614,588.74,588.05,0.28476519]
[1743937536484,0.58135659,588.73,588.05,0.28476519]
[1743937536688,0.58135659,588.72,588.04,0.34011291]
[1743937536887,0.614,588.74,588.05,0.28491843]
[1743937539688,0.58133156,588.83,588.05,0.28491843]
[1743937539885,0.58133156,588.82,588.05,0.28491843]
[1743937540091,0.58133156,588.81,588.05,0.28491843]
[1743937540287,0.58133156,588.8,588.05,0.28491843]
[1743937540490,0.58133156,588.79,588.05,0.28491843]
[1743937540690,0.58133156,588.78,588.05,0.28491843]
[1743937540890,0.58133156,588.77,588.05,0.28491843]
[1743937541091,0.58133156,588.76,588.05,0.28491843]
[1743937541287,0.58133156,588.75,588.05,0.28491843]
[1743937541488,0.29561044,588.86,588.05,0.28491843]
[1743937541691,0.58133156,588.85,588.05,0.28491843]
[1743937541889,0.58133156,588.84,588.05,0.28491843]
[1743937542088,0.58133156,588.83,588.05,0.28491843]
[1743937542290,0.58133156,588.82,588.05,0.28491843]
[1743937542491,0.58133156,588.81,588.05,0.28491843]
[1743937542691,0.29561044,588.86,588.04,0.34011291]
[1743937542692,0.58133156,588.8,588.04,0.34011291]
[1743937542892,0.58133156,588.79,588.05,0.28496033]
[1743937543093,0.58130369,588.78,588.05,0.28496033]
[1743937543294,0.58130369,588.77,588.05,0.28496033]
[1743937543495,0.58130369,588.76,588.05,0.28496033]
[1743937543695,0.58130369,588.85,588.05,0.28496033]
[1743937543892,0.58130369,588.84,588.05,0.28496033]
[1743937544093,0.58130369,588.83,588.05,0.28496033]
[1743937544297,0.58130369,588.82,588.05,0.28496033]
[1743937544498,0.58130369,588.81,588.05,0.28496033]
[1743937544697,0.58130369,588.8,588.05,0.28496033]
[1743937544899,0.58125815,588.79,588.05,0.28496033]
[1743937545099,0.58125815,588.78,588.05,0.28496033]
[1743937545299,0.58125815,588.77,588.05,0.28496033]
[1743937545496,0.58125815,588.76,588.05,0.28496033]
[1743937545696,0.58125815,588.75,588.05,0.28496033]
[1743937545898,0.58125815,588.74,588.06,1.27319059]
[1743937546097,0.58125815,588.73,588.06,1.27319059]
[1743937546297,0.58125815,588.72,588.07,0.28496033]
[1743937546600,0.58125815,588.71,588.07,0.28496033]
[1743937546796,0.58122347,588.7,588.06,1.27319059]
[1743937546998,0.638,589.01,588.07,0.28494989]
[1743937547197,0.58122347,589.0,588.07,0.28494989]
[1743937547395,0.638,589.01,588.07,0.28494989]
[1743937547396,0.29561421,588.86,588.07,0.28494989]
[1743937547604,0.58122347,588.85,588.07,0.28494989]
[1743937547801,0.58122347,588.84,588.06,1.27319059]
[1743937548002,0.58122347,588.83,588.07,0.28495938]
[1743937548202,0.58122347,588.82,588.07,0.28495938]
[1743937548402,0.58122347,588.81,588.07,0.28495938]
[1743937548599,0.58122347,588.8,588.07,0.28495938]
[1743937548799,0.58122347,588.79,588.07,0.28495938]
[1743937548998,0.58122347,588.78,588.08,1.27319059]
[1743937549200,0.58122347,588.77,588.09,0.28495938]
[1743937549397,0.58122347,588.76,588.08,1.27319059]
[1743937549602,0.58122347,588.75,588.09,0.28495844]
[1743937549799,0.58122347,588.74,588.09,0.28495844]
[1743937550002,0.58122347,588.73,588.09,0.28495844]
[1743937550198,0.58122347,588.72,588.09,0.28495844]
[1743937550403,0.58115063,588.71,588.09,0.28495844]
[1743937550700,0.58115063,588.7,588.09,0.28495844]
[1743937550902,0.29561421,588.86,588.09,0.28495844]
[1743937551103,0.58115172,588.85,588.04,0.34011291]
[1743937551303,0.58115172,588.84,588.05,0.28494991]
[1743937551499,0.58115172,588.83,588.05,0.28494991]
[1743937551804,0.58115172,588.83,588.04,0.34011291]
[1743937551805,0.58113789,588.82,588.04,0.34011291]
[1743937552005,0.58113789,588.81,588.05,0.2849017]
[1743937552206,0.58113789,588.8,588.05,0.2849017]
[1743937552505,0.58113789,588.79,588.05,0.2849017]
[1743937552705,0.58113789,588.78,588.05,0.2849017]
[1743937553005,0.58113789,588.77,588.05,0.2849017]
[1743937553206,0.58113789,588.76,588.05,0.2849017]
[1743937553506,0.58113789,588.75,588.05,0.2849017]
[1743937553702,0.58113789,588.74,588.05,0.2849017]
[1743937553906,0.58113789,588.73,588.05,0.2849017]
[1743937554106,0.58113789,588.72,588.05,0.2849017]
[1743937554307,0.58113789,588.71,588.05,0.2849017]
[1743937554606,0.58113789,588.7,588.05,0.2849017]
[1743937554803,0.29561672,588.86,588.05,0.2849017]
[1743937555001,0.58111106,588.85,588.05,0.2849017]
[1743937555305,0.58111106,588.84,588.05,0.2849017]
[1743937555500,0.58111106,588.83,588.05,0.2849017]
[1743937555702,0.58111106,588.82,588.05,0.2849017]
[1743937555904,0.58110654,588.81,588.05,0.2849017]
[1743937556106,0.58110654,588.8,588.05,0.2849017]
[1743937556304,0.58110654,588.79,588.05,0.2849017]
[1743937556505,0.58110654,588.78,588.05,0.2849017]
[1743937556706,0.58110654,588.77,588.05,0.2849017]
[1743937556905,0.58110654,588.76,588.05,0.2849017]
[1743937557105,0.58110654,588.75,588.05,0.2849017]
[1743937557302,0.58110654,588.74,588.05,0.2849017]
[1743937557505,0.58110654,588.73,588.05,0.2849017]
[1743937557704,0.58110654,588.72,588.05,0.2849017]
[1743937557905,0.58110654,588.71,588.05,0.2849017]
[1743937558106,0.58110654,588.7,588.05,0.2849017]
[1743937558303,0.638,589.01,588.05,0.2849017]
[1743937558504,0.58110468,589.0,588.05,0.2849017]
[1743937558704,0.58110468,588.99,588.05,0.2849017]
[1743937559007,0.58110468,588.98,588.05,0.2849017]
[1743937559207,0.58110468,588.97,588.05,0.2849017]
[1743937559408,0.58110468,588.96,588.05,0.2849017]
[1743937559708,0.58110468,588.95,588.05,0.2849017]
[1743937559904,0.58110468,588.94,588.05,0.2849017]
[1743937560108,0.58110468,588.93,588.05,0.2849017]
[1743937560402,0.58110468,588.92,588.05,0.2849017]
[1743937560604,0.58110468,588.91,588.1,1.27319059]
[1743937560902,0.58110468,588.9,588.11,0.2849017]
[1743937561106,0.58110468,588.89,588.11,0.2849017]
[1743937561306,0.58110468,588.88,588.11,0.2849017]
[1743937561606,0.58110468,588.87,588.11,0.2849017]
[1743937561805,0.58110468,588.86,588.11,0.2849017]
[1743937562006,0.58110468,588.85,588.11,0.2849017]
[1743937562205,0.58110468,588.84,588.11,0.2849017]
[1743937562408,0.58110468,588.83,588.16,1.27319059]
[1743937562605,0.58110468,588.82,588.17,0.2849017]
[1743937562909,0.58110468,588.81,588.17,0.2849017]
[1743937563110,0.58110468,588.8,588.17,0.2849017]
[1743937563311,0.58110468,588.79,588.17,0.2849017]
[1743937563511,0.58110468,588.78,588.17,0.2849017]
[1743937563713,0.58110468,588.77,588.17,0.2849017]
[1743937563913,0.58110468,588.76,588.16,1.27319059]
[1743937564108,0.58110468,588.75,588.17,0.28492319]
[1743937564306,0.58110468,588.74,588.17,0.28492319]
[1743937564513,0.58110468,589.05,588.17,0.28492319]
[1743937564711,0.525,589.06,588.16,0.28492319]
[1743937564712,0.58110468,589.04,588.16,0.28492319]
[1743937565007,0.58110468,589.03,588.17,0.28492319]
[1743937565213,0.58110468,589.02,588.16,0.28492319]
[1743937565412,0.58110468,589.01,588.15,1.27319059]
[1743937565615,0.58110468,589.0,588.16,0.28490454]
[1743937565810,0.58110468,588.99,588.16,0.28490454]
[1743937566008,0.58110468,588.98,588.16,0.28490454]
[1743937566310,0.58134055,588.97,588.16,0.28490454]
[1743937566512,0.58134055,588.96,588.16,0.28490454]
[1743937566813,0.58134055,588.95,588.16,0.28490454]
[1743937567010,0.58134055,588.94,588.16,0.28490454]
[1743937567211,0.58134055,588.93,588.15,1.27319059]
[1743937567412,0.575,588.97,588.04,0.34011291]
[1743937567413,0.58134055,588.92,588.16,0.2849039]
[1743937567613,0.58134055,588.91,588.15,0.2849039]
[1743937567814,0.58134055,588.9,588.16,0.2849039]
[1743937568111,0.58141546,588.89,588.17,0.2849039]
[1743937568309,0.58141546,588.88,588.15,0.2849039]
[1743937568514,0.58141546,588.87,588.16,0.2849039]
[1743937568715,0.58141546,588.86,588.15,0.2849039]
[1743937568915,0.58141546,588.85,588.16,0.2849039]
[1743937569215,0.29560667,588.9,588.14,1.27319059]
[1743937569216,0.58141546,588.84,588.17,0.2849039]
[1743937569417,0.58141546,588.83,588.15,1.55809449]
[1743937569616,0.58141546,588.82,588.16,0.2849039]
[1743937569817,0.58141546,588.81,588.16,0.2849039]
[1743937570017,0.58141546,588.8,588.16,0.2849039]
[1743937570316,0.58141546,588.79,588.16,0.2849039]
[1743937570516,0.58141546,588.78,588.16,0.2849039]
[1743937570817,0.58141546,588.77,588.16,0.2849039]
[1743937571017,0.58141546,588.76,588.16,0.2849039]
[1743937571217,0.58141546,588.75,588.16,0.2849039]
[1743937571417,0.58141546,588.74,588.16,0.2849039]
[1743937571615,0.58162281,588.73,588.16,0.2849039]
[1743937571818,0.58162281,588.72,588.16,0.2849039]
[1743937572021,0.29560542,588.87,588.16,0.2849039]
[1743937572022,0.58162281,588.71,588.16,0.2849039]
[1743937572218,0.58162281,588.7,588.15,1.27319059]
[1743937572421,0.58162281,588.69,588.16,0.28492539]
[1743937572723,0.58162281,588.68,588.15,1.27319059]
[1743937572920,0.58162281,588.67,588.15,1.27319059]
[1743937573121,0.575,588.97,588.15,1.27319059]
[1743937573323,0.58165484,588.96,588.15,1.27319059]
[1743937573624,0.58165484,588.95,588.15,1.27319059]
[1743937573823,0.58165484,588.94,588.16,0.28485305]
[1743937574023,0.58165484,588.93,588.16,0.28485305]
[1743937574217,0.58165484,588.92,588.05,0.28485305]
[1743937574423,0.58165484,588.91,588.06,0.28485305]
[1743937574623,0.58165484,588.9,588.07,0.28485305]
[1743937574816,0.58165484,588.89,588.05,0.28485305]
[1743937575020,0.58165484,588.88,588.06,0.28485305]